[Event "45th FIDE Womens Olympiad 2024"]
[Site "Budapest"]
[Date "2024.09.11"]
[Round "1.210"]
[White "Steil-Antoni, Fiona"]
[Black "Nkwanyane Nolwazi"]
[Result "1-0"]
[ECO "B01"]
[WhiteElo "2085"]
[BlackElo "1542"]
[Annotator "NA RC"]
[PlyCount "35"]
[EventDate "2024.09.05"]
[EventType "team-tourn"]
[EventCountry "HUN"]
[SourceTitle "playchess.com"]
[Source "ChessBase"]
[SourceQuality "1"]
[WhiteTeam "Luxembourg"]
[BlackTeam "Eswatini"]
[WhiteTeamCountry "LUX"]
[TimeControl "40/5400+30:1800+30"]

1. e4 d5 2. exd5 Qxd5 3. Nc3 Qd8 4. Nf3 Nf6 5. Bc4 e6 6. O-O Bc5 7. d4 Be7 8. Re1 c6 9. a4 Qc7 10. h3 h6 11. Be3 O-O 12. Qd2 Bb4 13. Bxh6 Bxc3 14. Qg5 Ne8 15. bxc3 Kh8 16. Bxg7+ Nxg7 17. Qh6+ Kg8 18. Ng5 1-0

[Event "45th FIDE Womens Olympiad 2024"]
[Site "Budapest"]
[Date "2024.09.11"]
[Round "1.211"]
[White "Dlamini Sincobile"]
[Black "Bakalarz, Grazyna"]
[Result "0-1"]
[ECO "D85"]
[WhiteElo "1572"]
[BlackElo "1928"]
[Annotator "NA"]
[PlyCount "80"]
[EventDate "2024.09.05"]
[EventType "team-tourn"]
[EventCountry "HUN"]
[SourceTitle "playchess.com"]
[Source "ChessBase"]
[SourceQuality "1"]
[WhiteTeam "Eswatini"]
[BlackTeam "Luxembourg"]
[BlackTeamCountry "LUX"]
[TimeControl "40/5400+30:1800+30"]

1. d4 Nf6 2. c4 g6 3. Nc3 d5 4. cxd5 Nxd5 5. e4 Nxc3 6. bxc3 Bg7 7. Nf3 c5 8. Bb5+ Bd7 9. Bxd7+ Nxd7 10. O-O O-O 11. Be3 Qa5 12. Qb3 b6 13. Rab1 Rac8 14. c4 cxd4 15. Bxd4 Bxd4 16. Nxd4 Nc5 17. Qc2 Rfd8 18. Rb5 Qa3 19. Nb3 Qa4 20. Rc1 Nd3 21. Nd2 Nc5 22. Qxa4 Nxa4 23. Rd5 e6 24. Rxd8+ Rxd8 25. Rc2 Rd3 26. f3 Kf8 27. Kf2 Ke7 28. Ke2 Rc3 29. Kd1 Kd6 30. Nb3 Rxc4 31. Rd2+ Kc7 32. Ke2 b5 33. Na5 Rc3 34. Rd3 Rc2+ 35. Rd2 Nc3+ 36. Kd3 Rxd2+ 37. Kxd2 Nxa2 38. Kd3 Nb4+ 39. Kd4 Nc6+ 40. Nxc6 Kxc6 0-1

[Event "45th FIDE Womens Olympiad 2024"]
[Site "Budapest"]
[Date "2024.09.11"]
[Round "1.212"]
[White "Kremer, Nadine"]
[Black "Nosimilo, Mkhonto"]
[Result "1-0"]
[ECO "C29"]
[WhiteElo "1898"]
[BlackElo "1561"]
[Annotator "NA"]
[PlyCount "79"]
[EventDate "2024.09.05"]
[EventType "team-tourn"]
[EventCountry "HUN"]
[SourceTitle "playchess.com"]
[Source "ChessBase"]
[SourceQuality "1"]
[WhiteTeam "Luxembourg"]
[BlackTeam "Eswatini"]
[WhiteTeamCountry "LUX"]
[TimeControl "40/5400+30:1800+30"]

1. e4 e5 2. Nc3 Nf6 3. f4 Nc6 4. fxe5 Nxe5 5. d4 Nc6 6. e5 Ng8 7. Nf3 Be7 8. d5 Nb4 9. a3 Na6 10. Bxa6 bxa6 11. d6 cxd6 12. exd6 Bh4+ 13. g3 Bf6 14. Nd5 Kf8 15. O-O Bb7 16. Nc7 Rc8 17. Be3 Rxc7 18. dxc7 Qxc7 19. Bd4 g6 20. Bxf6 Nxf6 21. Qd4 Kg7 22. Ne5 Re8 23. Ng4 Qb6 24. Qxb6 axb6 25. Rxf6 h5 26. Rxb6 Bc6 27. Nf2 Re2 28. Rxa6 Rxc2 29. b4 Rc4 30. Rb6 Rd4 31. a4 h4 32. a5 hxg3 33. hxg3 Bf3 34. a6 Rd5 35. a7 Rg5 36. g4 Ba8 37. Ra5 f5 38. Rb8 Be4 39. Nxe4 Rxg4+ 40. Kf2 1-0

[Event "45th FIDE Womens Olympiad 2024"]
[Site "Budapest"]
[Date "2024.09.11"]
[Round "1.214"]
[White "Marcos, Taqesyah"]
[Black "Vasquez Ramirez, Rocio"]
[Result "0-1"]
[ECO "D30"]
[WhiteElo "1679"]
[BlackElo "1981"]
[Annotator "NA RC"]
[PlyCount "98"]
[EventDate "2024.09.05"]
[EventType "team-tourn"]
[EventCountry "HUN"]
[SourceTitle "playchess.com"]
[Source "ChessBase"]
[SourceQuality "1"]
[WhiteTeam "Netherlands Antilles"]
[BlackTeam "Ecuador"]
[WhiteTeamCountry "AHO"]
[BlackTeamCountry "ECU"]
[TimeControl "40/5400+30:1800+30"]

1. d4 Nf6 2. e3 c5 3. Nf3 e6 4. c4 d5 5. Bd3 dxc4 6. Bxc4 a6 7. b3 b5 8. Bd3 Bb7 9. O-O Nbd7 10. Nbd2 cxd4 11. exd4 Be7 12. Re1 O-O 13. Bb2 Rc8 14. Rc1 Rxc1 15. Qxc1 Qa5 16. a3 Rc8 17. Qa1 Bd5 18. Rc1 Qd8 19. Qb1 g6 20. Ne5 Kg7 21. Be2 Bb7 22. Bf3 Nd5 23. Ne4 f5 24. Nc5 Nxc5 25. dxc5 Bf6 26. b4 Bxe5 27. Bxe5+ Kf7 28. Rd1 Bc6 29. h3 a5 30. Qc1 axb4 31. axb4 Qf8 32. Qg5 Kg8 33. h4 Ra8 34. h5 Qf7 35. hxg6 Qxg6 36. Qd2 Nxb4 37. Bxc6 Nxc6 38. Qf4 Ra4 39. Qe3 Re4 40. Qg3 Nxe5 41. Qc3 b4 42. Qa1 Qg7 43. Qa8+ Kf7 44. c6 Qg4 45. Qd8 Nf3+ 46. Kf1 Re1+ 47. Rxe1 Qc4+ 48. Re2 Qc1+ 49. Re1 Qxe1# 0-1

[Event "45th FIDE Womens Olympiad 2024"]
[Site "Budapest"]
[Date "2024.09.11"]
[Round "1.215"]
[White "Miranda Vargas, Analia Karen"]
[Black "Pourier, Dianthely"]
[Result "1-0"]
[ECO "A22"]
[WhiteElo "1891"]
[BlackElo "1548"]
[Annotator "NA"]
[PlyCount "59"]
[EventDate "2024.09.05"]
[EventType "team-tourn"]
[EventCountry "HUN"]
[SourceTitle "playchess.com"]
[Source "ChessBase"]
[SourceQuality "1"]
[WhiteTeam "Ecuador"]
[BlackTeam "Netherlands Antilles"]
[WhiteTeamCountry "ECU"]
[BlackTeamCountry "AHO"]
[TimeControl "40/5400+30:1800+30"]

1. e4 c6 2. c4 e5 3. Nc3 Nf6 4. d3 Bb4 5. Nf3 d6 6. Qb3 c5 7. Be2 h6 8. a3 Bxc3+ 9. Qxc3 Nc6 10. b4 b6 11. Rb1 O-O 12. h3 Re8 13. O-O Bb7 14. Be3 Qc7 15. Nh4 Nd4 16. Bd1 Rab8 17. f4 a6 18. Qd2 Qe7 19. Qf2 Bc8 20. bxc5 dxc5 21. fxe5 Nd7 22. Qg3 Rb7 23. Bxh6 Ne6 24. Nf5 Qf8 25. Bxg7 Nxg7 26. Nh6+ Kh7 27. Nxf7 Qe7 28. Qe3 Rh8 29. Qh6+ Kg8 30. Qxh8# 1-0

[Event "45th FIDE Womens Olympiad 2024"]
[Site "Budapest"]
[Date "2024.09.11"]
[Round "1.217"]
[White "Callender, Jessica"]
[Black "De Blecourt, Sandra"]
[Result "0-1"]
[ECO "A08"]
[WhiteElo "1579"]
[BlackElo "2065"]
[Annotator "NA"]
[PlyCount "74"]
[EventDate "2024.09.05"]
[EventType "team-tourn"]
[EventCountry "HUN"]
[SourceTitle "playchess.com"]
[Source "ChessBase"]
[SourceQuality "1"]
[WhiteTeam "Guyana"]
[BlackTeam "Denmark"]
[WhiteTeamCountry "GUY"]
[BlackTeamCountry "DEN"]
[TimeControl "40/5400+30:1800+30"]

1. Nf3 c5 2. g3 Nc6 3. Bg2 d5 4. d3 e5 5. O-O Bd6 6. Nbd2 Nge7 7. e4 d4 8. a4 O-O 9. Nc4 Bc7 10. Bd2 Bg4 11. Qc1 Qd7 12. Ne1 Be2 13. h4 f5 14. Bh3 Qe8 15. Ng2 fxe4 16. Re1 exd3 17. Be6+ Kh8 18. cxd3 Bxd3 19. Bg5 Bf5 20. Bxe7 Qxe7 21. Bxf5 Rxf5 22. Qd2 Raf8 23. Re2 e4 24. Rae1 Qf7 25. Kh2 Qxc4 26. Rxe4 Ne5 27. Qe2 Qxe2 28. R1xe2 d3 29. Rxe5 Bxe5 30. Rd2 Rxf2 31. Rxd3 Rxb2 32. Kh3 Kg8 33. Ne3 Rf3 34. Kg4 Rxg3+ 35. Kf5 Bd4 36. Ke4 Re2 37. Kf4 Rgxe3 0-1

[Event "45th FIDE Womens Olympiad 2024"]
[Site "Budapest"]
[Date "2024.09.11"]
[Round "1.218"]
[White "Kakulidis, Ellen"]
[Black "Shariff, Sasha Christina"]
[Result "1-0"]
[ECO "E09"]
[WhiteElo "2048"]
[BlackElo "1538"]
[Annotator "NA"]
[PlyCount "85"]
[EventDate "2024.09.05"]
[EventType "team-tourn"]
[EventCountry "HUN"]
[SourceTitle "playchess.com"]
[Source "ChessBase"]
[SourceQuality "1"]
[WhiteTeam "Denmark"]
[BlackTeam "Guyana"]
[WhiteTeamCountry "DEN"]
[BlackTeamCountry "GUY"]
[TimeControl "40/5400+30:1800+30"]

1. d4 d5 2. c4 c6 3. Nf3 Nf6 4. g3 e6 5. Bg2 Be7 6. O-O O-O 7. Qc2 Nbd7 8. Nbd2 b6 9. e4 dxe4 10. Nxe4 Nxe4 11. Qxe4 Bb7 12. Rd1 Nf6 13. Qc2 Rc8 14. Bf4 Bd6 15. Bxd6 Qxd6 16. Rac1 c5 17. dxc5 Qxc5 18. b3 Be4 19. Qe2 Rfd8 20. Nh4 Bxg2 21. Nxg2 Rd4 22. Rxd4 Qxd4 23. Rd1 Qc5 24. Rd3 e5 25. Ne3 e4 26. Rd2 Re8 27. Qd1 g6 28. Rd6 Re6 29. Rxe6 fxe6 30. Qd8+ Kg7 31. h3 Qf8 32. Qd4 e5 33. Qxe5 Qe8 34. Qxe8 Nxe8 35. Nd5 Kf7 36. Kf1 Ke6 37. Ke2 Ke5 38. Ke3 b5 39. Ne7 bxc4 40. bxc4 Kd6 41. Nc8+ Kc7 42. Nxa7 Nd6 43. Nb5+ 1-0

[Event "45th FIDE Womens Olympiad 2024"]
[Site "Budapest"]
[Date "2024.09.11"]
[Round "1.219"]
[White "Joshi, Aditi Narayan"]
[Black "Guindy, Esmat Susanne"]
[Result "0-1"]
[ECO "D57"]
[WhiteElo "1546"]
[BlackElo "2015"]
[Annotator "NA"]
[PlyCount "104"]
[EventDate "2024.09.05"]
[EventType "team-tourn"]
[EventCountry "HUN"]
[SourceTitle "playchess.com"]
[Source "ChessBase"]
[SourceQuality "1"]
[WhiteTeam "Guyana"]
[BlackTeam "Denmark"]
[WhiteTeamCountry "GUY"]
[BlackTeamCountry "DEN"]
[TimeControl "40/5400+30:1800+30"]

1. d4 d5 2. c4 e6 3. Nf3 Be7 4. Nc3 Nf6 5. Bg5 O-O 6. e3 h6 7. Bh4 Ne4 8. Bxe7 Qxe7 9. cxd5 Nxc3 10. bxc3 exd5 11. Bd3 c5 12. dxc5 Qd7 13. c6 Qxc6 14. Qd2 Qc5 15. O-O Nc6 16. Rac1 b6 17. Bc2 Na5 18. Bb1 Bb7 19. Qd3 g6 20. Ne5 Qe7 21. Qd4 Kh7 22. c4 Nxc4 23. Nxc4 dxc4 24. Qxc4 Qg5 25. Be4 Rac8 26. Qd3 Rfd8 27. Qb1 Rxc1 28. Rxc1 Bxe4 29. Qxe4 Qc5 30. Re1 Qa5 31. Rf1 Qxa2 32. h4 Qd5 33. Qc2 b5 34. e4 Qd3 35. Qc7 Rd7 36. Qf4 Re7 37. Qb8 a5 38. f3 b4 39. Qa8 Qd4+ 40. Kh1 Ra7 41. Qc8 b3 42. Qg4 Qd7 43. Qf4 a4 44. Qe3 Qe7 45. Qc3 Rb7 46. Rb1 Qc7 47. Qa1 Qc2 48. Rb2 Qxb2 49. Qxb2 a3 50. Qxa3 b2 51. e5 b1=Q+ 52. Kh2 Qe1 0-1

[Event "45th FIDE Womens Olympiad 2024"]
[Site "Budapest"]
[Date "2024.09.11"]
[Round "1.220"]
[White "Durrfeld, Sofie Bech"]
[Black "Clement, Ciel Desiree"]
[Result "1-0"]
[ECO "B24"]
[WhiteElo "1937"]
[BlackElo "1460"]
[Annotator "NA"]
[PlyCount "113"]
[EventDate "2024.09.05"]
[EventType "team-tourn"]
[EventCountry "HUN"]
[SourceTitle "playchess.com"]
[Source "ChessBase"]
[SourceQuality "1"]
[WhiteTeam "Denmark"]
[BlackTeam "Guyana"]
[WhiteTeamCountry "DEN"]
[BlackTeamCountry "GUY"]
[TimeControl "40/5400+30:1800+30"]

1. e4 c5 2. Nc3 e6 3. Nge2 Nc6 4. g3 Nf6 5. Bg2 Be7 6. O-O O-O 7. f4 d6 8. d3 Nd4 9. Nxd4 cxd4 10. Ne2 Qb6 11. h3 Qc5 12. g4 h6 13. Ng3 Bd7 14. Rf2 Bc6 15. f5 e5 16. g5 hxg5 17. Bxg5 d5 18. Bxf6 Bxf6 19. Nh5 Bg5 20. Qg4 f6 21. h4 Bh6 22. Kh2 Rac8 23. Rg1 Rc7 24. Bf3 Be3 25. Nxg7 Qe7 26. Ne6+ Kh8 27. Qh5+ Qh7 28. Qxh7+ Rxh7 29. Nxf8 Bxf2 30. Nxh7 Bxg1+ 31. Kxg1 dxe4 32. Nxf6 exf3 33. Kf2 Kg7 34. Ne4 Bd7 35. f6+ Kg6 36. h5+ Kf7 37. Kxf3 Bc6 38. Kg4 Bxe4 39. dxe4 Kxf6 40. h6 Kg6 41. h7 Kxh7 42. Kf5 Kg7 43. Kxe5 Kf7 44. Kxd4 Ke7 45. Kd5 Kd7 46. c4 b6 47. b4 a6 48. c5 b5 49. c6+ Kc7 50. e5 Kd8 51. Kd6 Kc8 52. e6 Kd8 53. c7+ Kc8 54. e7 Kb7 55. e8=Q a5 56. Qb8+ Ka6 57. c8=B# 1-0

[Event "45th FIDE Womens Olympiad 2024"]
[Site "Budapest"]
[Date "2024.09.11"]
[Round "1.221"]
[White "Maksimovic, Masa"]
[Black "Ahmed, Najla"]
[Result "1-0"]
[ECO "B15"]
[WhiteElo "2093"]
[BlackElo "1539"]
[Annotator "NA"]
[PlyCount "85"]
[EventDate "2024.09.05"]
[EventType "team-tourn"]
[EventCountry "HUN"]
[SourceTitle "playchess.com"]
[Source "ChessBase"]
[SourceQuality "1"]
[WhiteTeam "Bosnia & Herzegovina"]
[BlackTeam "Bahrain"]
[WhiteTeamCountry "BIH"]
[BlackTeamCountry "BRN"]
[TimeControl "40/5400+30:1800+30"]

1. e4 c6 2. d4 d5 3. Nc3 dxe4 4. Nxe4 Nf6 5. Nxf6+ exf6 6. c3 Bd6 7. Bd3 O-O 8. Qc2 Re8+ 9. Ne2 h5 10. O-O Nd7 11. Bd2 Nf8 12. c4 h4 13. h3 Bd7 14. Rae1 Rc8 15. b4 Bb8 16. Qd1 Ng6 17. Qc2 Qc7 18. f4 Nf8 19. Qb1 Rcd8 20. Nc3 Bc8 21. d5 a6 22. a3 Ba7+ 23. c5 cxd5 24. Rxe8 Rxe8 25. Nxd5 Qd8 26. Bc4 Be6 27. Qb3 Qd7 28. Be1 Rd8 29. Ne3 b6 30. f5 Bxc4 31. Qxc4 Qc7 32. Bf2 bxc5 33. Rc1 Rd4 34. Qxd4 cxd4 35. Rxc7 dxe3 36. Rxa7 exf2+ 37. Kxf2 g6 38. Rxa6 Kg7 39. b5 Nd7 40. b6 gxf5 41. b7 Kg6 42. Rd6 Nb8 43. Rd8 1-0

[Event "45th FIDE Womens Olympiad 2024"]
[Site "Budapest"]
[Date "2024.09.11"]
[Round "1.222"]
[White "Almusawi, Maram"]
[Black "Babic, Milana"]
[Result "0-1"]
[ECO "D59"]
[WhiteElo "1510"]
[BlackElo "2080"]
[Annotator "NA"]
[PlyCount "66"]
[EventDate "2024.09.05"]
[EventType "team-tourn"]
[EventCountry "HUN"]
[SourceTitle "playchess.com"]
[Source "ChessBase"]
[SourceQuality "1"]
[WhiteTeam "Bahrain"]
[BlackTeam "Bosnia & Herzegovina"]
[WhiteTeamCountry "BRN"]
[BlackTeamCountry "BIH"]
[TimeControl "40/5400+30:1800+30"]

1. d4 Nf6 2. c4 b6 3. Nc3 Bb7 4. Bg5 e6 5. e3 Be7 6. Nf3 h6 7. Bh4 O-O 8. Bd3 d5 9. O-O dxc4 10. Bxc4 Ne4 11. Bxe7 Qxe7 12. Be2 Nxc3 13. bxc3 Nd7 14. Qc2 Rac8 15. Rac1 Rfd8 16. Qa4 a6 17. Rfd1 Nf6 18. Nd2 Rd5 19. Bf3 Ra5 20. Qb4 c5 21. Qb2 Rb5 22. Qa1 Bxf3 23. Nxf3 c4 24. Rb1 Qa3 25. Rxb5 axb5 26. Rb1 Ne4 27. Rxb5 Nxc3 28. Rxb6 Ne2+ 29. Kf1 c3 30. Ne1 c2 31. Nxc2 Rxc2 32. Rb8+ Kh7 33. Qb1 Qd3 0-1

[Event "45th FIDE Womens Olympiad 2024"]
[Site "Budapest"]
[Date "2024.09.11"]
[Round "1.223"]
[White "Jacimovic, Sara"]
[Black "Sharaf, Hawra"]
[Result "1-0"]
[ECO "D00"]
[WhiteElo "1981"]
[BlackElo "1595"]
[Annotator "NA RC"]
[PlyCount "53"]
[EventDate "2024.09.05"]
[EventType "team-tourn"]
[EventCountry "HUN"]
[SourceTitle "playchess.com"]
[Source "ChessBase"]
[SourceQuality "1"]
[WhiteTeam "Bosnia & Herzegovina"]
[BlackTeam "Bahrain"]
[WhiteTeamCountry "BIH"]
[BlackTeamCountry "BRN"]
[TimeControl "40/5400+30:1800+30"]

1. d4 d5 2. e3 c6 3. Bd3 Nf6 4. f4 Bg4 5. Nf3 Nbd7 6. Nbd2 e6 7. c3 Be7 8. O-O O-O 9. Qe1 Rc8 10. Ne5 Bh5 11. e4 c5 12. Nxd7 Nxd7 13. e5 Bh4 14. Qe3 Bg6 15. Bxg6 fxg6 16. Qh3 Rf5 17. g4 Rf7 18. g5 cxd4 19. cxd4 Bxg5 20. fxg5 Qxg5+ 21. Qg3 Rxf1+ 22. Nxf1 Qf5 23. Bd2 Nb6 24. b3 Rf8 25. Re1 Rc8 26. Bb4 Rc2 27. Ne3 1-0

[Event "45th FIDE Womens Olympiad 2024"]
[Site "Budapest"]
[Date "2024.09.11"]
[Round "1.224"]
[White "Yaqoob, Wafa"]
[Black "Mahmutbegovic Smajilbasic, Nadina"]
[Result "0-1"]
[ECO "C54"]
[WhiteElo "1438"]
[BlackElo "1973"]
[Annotator "NA"]
[PlyCount "64"]
[EventDate "2024.09.05"]
[EventType "team-tourn"]
[EventCountry "HUN"]
[SourceTitle "playchess.com"]
[Source "ChessBase"]
[SourceQuality "1"]
[WhiteTeam "Bahrain"]
[BlackTeam "Bosnia & Herzegovina"]
[WhiteTeamCountry "BRN"]
[BlackTeamCountry "BIH"]
[TimeControl "40/5400+30:1800+30"]

1. e4 e5 2. Nf3 Nc6 3. Bc4 Bc5 4. c3 Nf6 5. d3 a6 6. Bb3 Ba7 7. O-O d6 8. Nbd2 O-O 9. h3 b5 10. Re1 Ne7 11. Nf1 Ng6 12. Ng3 h6 13. d4 c5 14. dxe5 dxe5 15. c4 Qb6 16. cxb5 axb5 17. Be3 Qc7 18. Rc1 Qe7 19. Nf5 Qc7 20. Nd6 Bd7 21. Qd2 c4 22. a4 Bxe3 23. Rxe3 Qb6 24. Ba2 Rxa4 25. Bxc4 bxc4 26. Nxc4 Qe6 27. b3 Ra6 28. Qc3 Rc8 29. Ree1 Rac6 30. Qb2 Nh5 31. Red1 Nhf4 32. Qd2 R6c7 0-1

[Event "45th FIDE Womens Olympiad 2024"]
[Site "Budapest"]
[Date "2024.09.11"]
[Round "1.225"]
[White "Ebrahim, Zahabiyah"]
[Black "Stojkovska, Monika"]
[Result "0-1"]
[ECO "A47"]
[WhiteElo "1475"]
[BlackElo "2043"]
[Annotator "NA"]
[PlyCount "106"]
[EventDate "2024.09.05"]
[EventType "team-tourn"]
[EventCountry "HUN"]
[SourceTitle "playchess.com"]
[Source "ChessBase"]
[SourceQuality "1"]
[WhiteTeam "Tanzania"]
[BlackTeam "North Macedonia"]
[WhiteTeamCountry "TAN"]
[BlackTeamCountry "MKD"]
[TimeControl "40/5400+30:1800+30"]

1. d4 Nf6 2. Nf3 b6 3. e3 Bb7 4. Bd3 e6 5. Nbd2 Be7 6. Qe2 c5 7. c3 cxd4 8. exd4 d6 9. O-O Nbd7 10. Re1 a6 11. Ng5 O-O 12. Nde4 Nxe4 13. Nxe4 Re8 14. Be3 Nf8 15. Rad1 f5 16. Ng3 Bg5 17. f4 Bh4 18. Bf2 g6 19. Qe3 b5 20. Re2 Qd7 21. Rde1 Qc6 22. Ne4 Bxf2+ 23. Qxf2 fxe4 24. Bxe4 Qd7 25. Bc2 Bd5 26. a3 Qf7 27. Qg3 Rad8 28. Qg5 Kg7 29. Rf2 Qf6 30. Qg3 Kh8 31. Re3 Re7 32. Qh3 Rf7 33. Qh6 Qg7 34. Qh4 Qf6 35. Qh6 Qg7 36. Qh4 Qf6 37. Qh6 e5 38. dxe5 dxe5 39. Rxe5 Bc4 40. h3 Nd7 41. Re4 Nc5 42. Re5 Nd3 43. Bxd3 Bxd3 44. g4 Bc4 45. Re4 Rd1+ 46. Kh2 Qc6 47. Re5 Qh1+ 48. Kg3 Rd3+ 49. Kh4 Rxh3+ 50. Kg5 Rxh6 51. f5 Qh4+ 52. Kf4 Qxf2+ 53. Kg5 Qd2+ 0-1

[Event "45th FIDE Womens Olympiad 2024"]
[Site "Budapest"]
[Date "2024.09.11"]
[Round "1.226"]
[White "Manova, Ivana"]
[Black "Mahi R. Shah"]
[Result "1-0"]
[ECO "C02"]
[WhiteElo "2031"]
[BlackElo "1602"]
[Annotator "NA"]
[PlyCount "69"]
[EventDate "2024.09.05"]
[EventType "team-tourn"]
[EventCountry "HUN"]
[SourceTitle "playchess.com"]
[Source "ChessBase"]
[SourceQuality "1"]
[WhiteTeam "North Macedonia"]
[BlackTeam "Tanzania"]
[WhiteTeamCountry "MKD"]
[BlackTeamCountry "TAN"]
[TimeControl "40/5400+30:1800+30"]

1. e4 e6 2. d4 d5 3. e5 c5 4. c3 Nc6 5. Nf3 Qb6 6. Be2 Nge7 7. dxc5 Qxc5 8. b4 Qb6 9. Bf4 Ng6 10. Bg3 a6 11. Qd3 Bd7 12. O-O Qc7 13. Qe3 Be7 14. Nbd2 Qd8 15. a3 f6 16. c4 Ncxe5 17. Bxe5 fxe5 18. cxd5 Bf6 19. dxe6 Bxe6 20. Nc4 Bxc4 21. Bxc4 Qe7 22. Rad1 Rc8 23. Qe4 b5 24. Bd5 Rc7 25. Ba2 Nf4 26. Qa8+ Qd8 27. Rxd8+ Bxd8 28. Qe4 Ng6 29. Nxe5 Re7 30. Qc6+ Kf8 31. Nd7+ Ke8 32. Nc5+ Kf8 33. Rd1 Re8 34. Qd6+ Be7 35. Nd7# 1-0

[Event "45th FIDE Womens Olympiad 2024"]
[Site "Budapest"]
[Date "2024.09.11"]
[Round "1.227"]
[White "Anahi Rishit Shah"]
[Black "Zhezhovska, Monika"]
[Result "0-1"]
[ECO "B56"]
[WhiteElo "1513"]
[BlackElo "2106"]
[Annotator "NA"]
[PlyCount "132"]
[EventDate "2024.09.05"]
[EventType "team-tourn"]
[EventCountry "HUN"]
[SourceTitle "playchess.com"]
[Source "ChessBase"]
[SourceQuality "1"]
[WhiteTeam "Tanzania"]
[BlackTeam "North Macedonia"]
[WhiteTeamCountry "TAN"]
[BlackTeamCountry "MKD"]
[TimeControl "40/5400+30:1800+30"]

1. e4 c5 2. Nf3 Nc6 3. d4 cxd4 4. Nxd4 Nf6 5. Nc3 d6 6. Bb5 Bd7 7. O-O g6 8. Re1 Bg7 9. Be3 O-O 10. h3 Qc7 11. Qd2 Rfc8 12. Nxc6 Bxc6 13. Bxc6 bxc6 14. Bh6 Bh8 15. Bf4 Rd8 16. Qe3 Nd7 17. Rab1 Rab8 18. Qd3 Ne5 19. Bxe5 Bxe5 20. Qe3 Qb6 21. Qd2 Rd7 22. Na4 Qa6 23. b3 Rbd8 24. c4 c5 25. Qe3 Qa5 26. Red1 Bd4 27. Qe2 Rb7 28. Kh1 Rdb8 29. f4 Qc7 30. Qg4 Kh8 31. f5 Rg8 32. Qf3 f6 33. Nb2 Rbb8 34. Nd3 g5 35. Qg3 Qa5 36. a4 Qc3 37. Rdc1 Qd2 38. Ne1 Be5 39. Qg4 Qe3 40. Nc2 Qd2 41. Ne1 Rxb3 42. Rd1 Rxb1 43. Rxb1 Bd4 44. Rd1 Qa2 45. Nf3 Qxc4 46. a5 Qa4 47. Nd2 Qxa5 48. Nb3 Qc3 49. Nd2 a5 50. Nb1 Qc2 51. Na3 Qb3 52. Nb1 a4 53. Nd2 Qa2 54. Qf3 a3 55. Nb1 Bb2 56. Qd3 c4 57. Nc3 Qb3 58. Qd4 Bxc3 59. Qa7 Qxd1+ 60. Kh2 Be5+ 61. g3 Qe2+ 62. Kg1 Bxg3 63. e5 a2 64. exd6 a1=Q+ 65. Qxa1 Qf2+ 66. Kh1 Qh2# 0-1

[Event "45th FIDE Womens Olympiad 2024"]
[Site "Budapest"]
[Date "2024.09.11"]
[Round "1.228"]
[White "Trajkovska, Sanja"]
[Black "Bertha Samson Mkude"]
[Result "1-0"]
[ECO "C25"]
[WhiteElo "1921"]
[BlackElo "1459"]
[Annotator "NA"]
[PlyCount "67"]
[EventDate "2024.09.05"]
[EventType "team-tourn"]
[EventCountry "HUN"]
[SourceTitle "playchess.com"]
[Source "ChessBase"]
[SourceQuality "1"]
[WhiteTeam "North Macedonia"]
[BlackTeam "Tanzania"]
[WhiteTeamCountry "MKD"]
[BlackTeamCountry "TAN"]
[TimeControl "40/5400+30:1800+30"]

1. e4 e5 2. Nc3 Nc6 3. Bc4 Bc5 4. d3 d6 5. Nge2 h6 6. Na4 Bb6 7. Nxb6 axb6 8. a3 Nf6 9. Ng3 Bg4 10. f3 Bd7 11. O-O Na5 12. Ba2 Qe7 13. Nf5 Bxf5 14. exf5 Nc6 15. f4 O-O 16. fxe5 Nxe5 17. d4 Ned7 18. Re1 Qd8 19. Qf3 c6 20. Qg3 Nh5 21. Qh3 Nhf6 22. Qg3 g5 23. fxg6 d5 24. Bxh6 Ne8 25. gxf7+ Kxf7 26. Bxf8 Kxf8 27. Rf1+ Nef6 28. c4 Ra5 29. b4 Ra8 30. cxd5 cxd5 31. Bxd5 b5 32. Qg8+ Ke7 33. Qe6+ Kf8 34. Qf7# 1-0

[Event "45th FIDE Womens Olympiad 2024"]
[Site "Budapest"]
[Date "2024.09.11"]
[Round "1.229"]
[White "Zvereva, Marija"]
[Black "Swaminathan, Laia"]
[Result "1-0"]
[ECO "C45"]
[WhiteElo "2035"]
[BlackElo "1620"]
[Annotator "NA"]
[PlyCount "69"]
[EventDate "2024.09.05"]
[EventType "team-tourn"]
[EventCountry "HUN"]
[SourceTitle "playchess.com"]
[Source "ChessBase"]
[SourceQuality "1"]
[WhiteTeam "Monaco"]
[BlackTeam "Cayman Islands"]
[WhiteTeamCountry "MNC"]
[BlackTeamCountry "CAY"]
[TimeControl "40/5400+30:1800+30"]

1. e4 e5 2. Nf3 Nc6 3. d4 exd4 4. Nxd4 Bc5 5. Nb3 Bb6 6. Nc3 Nge7 7. Qe2 O-O 8. Bg5 f6 9. Be3 Re8 10. O-O-O Bxe3+ 11. Qxe3 Ng6 12. Bc4+ Kf8 13. f4 d6 14. Qf3 Be6 15. Bxe6 Rxe6 16. h4 Qe8 17. h5 Nh8 18. h6 g6 19. Nd5 Qf7 20. f5 gxf5 21. exf5 Re5 22. Rh3 Ne7 23. Nxe7 Qxe7 24. Rg3 Nf7 25. Rg7 Re1 26. Nd4 Re8 27. Ne6+ Rxe6 28. fxe6 Qxe6 29. Rf1 Qxa2 30. Qxf6 Qa1+ 31. Kd2 Qa5+ 32. c3 Qd5+ 33. Kc1 Re7 34. Rg8+ Kxg8 35. Qg7# 1-0

[Event "45th FIDE Womens Olympiad 2024"]
[Site "Budapest"]
[Date "2024.09.11"]
[Round "1.231"]
[White "Berezovska, Svetlana"]
[Black "Majid, Zara"]
[Result "1-0"]
[ECO "B08"]
[WhiteElo "1869"]
[BlackElo "1411"]
[Annotator "NA"]
[PlyCount "77"]
[EventDate "2024.09.05"]
[EventType "team-tourn"]
[EventCountry "HUN"]
[SourceTitle "playchess.com"]
[Source "ChessBase"]
[SourceQuality "1"]
[WhiteTeam "Monaco"]
[BlackTeam "Cayman Islands"]
[WhiteTeamCountry "MNC"]
[BlackTeamCountry "CAY"]
[TimeControl "40/5400+30:1800+30"]

1. e4 d6 2. d4 Nf6 3. Nc3 g6 4. Nf3 Bg7 5. Bc4 O-O 6. O-O Nxe4 7. Nxe4 d5 8. Bd3 dxe4 9. Bxe4 Nd7 10. c3 Nf6 11. Bc2 b6 12. Re1 h6 13. Qe2 e6 14. Bf4 Nd5 15. Be5 Bxe5 16. dxe5 Bb7 17. Be4 Nf4 18. Qe3 Bxe4 19. Qxe4 Nd5 20. Rad1 Qe8 21. Rd3 c5 22. Qh4 Kg7 23. Red1 Qe7 24. Qg3 Rad8 25. h4 Nc7 26. h5 Rxd3 27. Rxd3 g5 28. Nd2 Nd5 29. Ne4 Nf4 30. Re3 Nxh5 31. Qg4 Nf4 32. Nf6 Qd8 33. g3 Nd5 34. Nh5+ Kg6 35. Qe4+ f5 36. exf6+ Kf7 37. Qxe6+ Kg6 38. Qe4+ Kf7 39. Qh7# 1-0